bitfinex-derivatives/quotes_ETHF0:USTF0_20250708
["timestamp","ask_amount","ask_price","bid_price","bid_amount"]
[1751933361223,28.30139,2543.3,2543.2,1.43339]
[1751933361421,27.5151,2543.3,2543.2,1.43339]
[1751933361919,28.30138,2543.3,2543.2,1.43339]
[1751933362320,27.5151,2543.3,2543.2,1.43339]
[1751933362826,28.30138,2543.3,2543.2,1.43339]
[1751933364026,27.5151,2543.3,2543.2,1.43339]
[1751933364525,28.30138,2543.3,2543.2,1.43339]
[1751933365725,27.5151,2543.3,2543.2,2.41629]
[1751933365927,26.807,2543.3,2543.2,2.41629]
[1751933366230,9.09417,2543.7,2543.6,0.78618]
[1751933366526,36.60827,2543.7,2543.6,1.43328]
[1751933367425,36.60727,2543.7,2543.6,1.43328]
[1751933371823,35.89917,2543.7,2543.6,1.43328]
[1751933372127,36.60727,2543.7,2543.6,1.43328]
[1751933372328,36.60727,2543.7,2543.6,0.6471]
[1751933372627,36.60727,2543.7,2543.6,1.43328]
[1751933373327,36.60227,2543.7,2543.6,1.43328]
[1751933373524,9.09415,2543.7,2543.6,1.43328]
[1751933373728,35.89215,2543.7,2543.6,2.41618]
[1751933373918,36.60025,2543.7,2543.6,2.41618]
[1751933374126,36.60025,2543.7,2543.6,1.43328]
[1751933375526,36.60025,2543.7,2543.6,2.41618]
[1751933375923,36.60025,2543.7,2543.6,1.43328]
[1751933376232,36.60025,2543.7,2543.6,0.6471]
[1751933376527,38.03624131,2543.7,2543.6,1.43328]
[1751933377923,38.03624131,2543.7,2543.6,0.78618]
[1751933378124,38.03624131,2543.7,2543.6,1.43328]
[1751933380831,2.93024131,2543.7,2543.6,2.41618]
[1751933381126,28.93309131,2543.7,2543.6,2.41618]
[1751933381526,27.4971,2543.7,2543.6,2.41618]
[1751933382226,27.4971,2543.7,2543.4,4.16827325]
[1751933382435,0.78621,2543.5,2543.4,0.78622]
[1751933382627,28.28031,2543.5,2543.4,0.78622]
[1751933383129,29.65751,2543.5,2543.4,0.78622]
[1751933383332,0.78628,2543.4,2543.3,0.78625]
[1751933383530,2.87158,2543.4,2543.3,0.78625]
[1751933384129,2.87158,2543.4,2543.3,1.43335]
[1751933384430,2.0853,2543.4,2543.3,1.43338]
[1751933384624,26.786,2543.5,2543.4,0.78625]
[1751933384825,27.4941,2543.5,2543.4,1.43335]
[1751933385624,28.28031,2543.5,2543.4,1.43335]
[1751933385825,27.4941,2543.5,2543.4,1.43335]
[1751933386131,27.4941,2543.5,2543.4,2.41625]
[1751933387425,27.4941,2543.5,2543.4,1.43335]
[1751933387626,27.4941,2543.5,2543.4,2.41625]
[1751933387827,1.3772,2543.8,2543.7,0.78615]
[1751933388030,0.78618,2543.7,2543.4,2.94851]
[1751933388333,0.78618,2543.7,2543.6,0.6426]
[1751933388633,2.93094226,2543.7,2543.6,1.2897]
[1751933388831,28.94076226,2543.7,2543.6,2.07585]
[1751933389036,27.5041,2543.7,2543.6,2.07585]
[1751933389332,0.7064,2544.0,2543.9,0.78609]
[1751933389532,1.43671876,2544.0,2543.9,2.41609]
[1751933389828,0.78597,2544.4,2544.0,1.96514]
[1751933390033,28.23907,2544.4,2544.3,1.43197]
[1751933390331,29.58677,2544.4,2544.3,1.43197]
[1751933392734,2.0028,2544.4,2544.3,0.78597]
[1751933392932,2.0028,2544.4,2544.3,1.43197]
[1751933393131,28.8038,2544.4,2544.3,1.43197]
[1751933393330,28.93464,2544.4,2544.3,1.43197]
[1751933393528,29.58974,2544.4,2544.3,1.43197]
[1751933397436,28.8038,2544.4,2544.3,1.43197]
[1751933397730,28.93464,2544.4,2544.3,1.43197]
[1751933397936,29.58974,2544.4,2544.3,1.43197]
[1751933399234,28.24204,2544.4,2544.3,1.43197]
[1751933399437,28.24204,2544.4,2544.3,2.42307]
[1751933399833,28.24204,2544.4,2544.3,1.43197]
[1751933400537,27.4561,2544.4,2544.3,1.43197]
[1751933400735,10.3557,2544.7,2544.6,0.78587]
[1751933400932,8.308,2544.7,2544.6,2.42297]
[1751933401238,35.7431,2544.7,2544.6,2.42297]
[1751933401637,35.092,2544.7,2544.6,2.42297]
[1751933401827,8.9631,2544.7,2544.6,2.42297]
[1751933402032,35.7471,2544.7,2544.6,2.42297]
[1751933402834,1.3534,2545.0,2544.9,0.78578]
[1751933403037,70.44074,2545.1,2545.0,0.78575]
[1751933403238,70.44074,2545.1,2545.0,1.43175]
[1751933403535,97.22974,2545.1,2545.0,1.43175]
[1751933404438,97.22974,2545.1,2545.0,0.78575]
[1751933404639,97.22974,2545.1,2545.0,1.43175]
[1751933407341,96.444,2545.1,2545.0,1.43175]
[1751933407635,69.655,2545.1,2545.0,1.43175]
[1751933407838,0.78571,2545.2,2545.0,1.43175]
[1751933407839,0.78569,2545.2,2545.1,0.78569]
[1751933408033,28.21679,2545.2,2545.1,1.43169]
[1751933408233,1.3534,2545.3,2545.2,0.78569]
[1751933408434,1.3534,2545.3,2545.2,1.43169]
[1751933408638,2.77238,2545.6,2545.5,0.7856]
[1751933408939,2.77238,2545.6,2545.2,3.07989]
[1751933408940,0.78564,2545.5,2545.4,0.78561]
[1751933409136,1.9884,2545.5,2545.4,1.43161]
[1751933409338,26.784,2545.5,2545.4,1.43161]
[1751933409538,27.4391,2545.5,2545.4,1.43161]
[1751933409741,27.4391,2545.5,2545.2,0.6571]
[1751933409938,2.15866,2545.4,2545.3,0.78563]
[1751933410138,2.81376,2545.4,2545.3,1.43163]
[1751933410339,2.81376,2545.4,2545.3,0.78563]
[1751933410842,2.81376,2545.4,2545.3,1.43163]
[1751933411038,2.0281,2545.4,2545.3,1.43163]
[1751933411241,8.301,2545.7,2545.6,0.78557]
[1751933411444,36.52764,2545.7,2545.6,1.43157]
[1751933411734,36.52764,2545.7,2545.6,0.78557]
[1751933411941,0.78566,2545.3,2545.2,1.44276]
[1751933412243,1.44076,2545.3,2545.2,2.08876]
[1751933412643,2.81376,2545.3,2545.2,2.08876]
[1751933413238,2.15866,2545.3,2545.2,2.08876]
[1751933413437,2.81376,2545.3,2545.2,2.08876]
[1751933415440,2.81376,2545.3,2545.2,1.3031]
[1751933415747,2.81376,2545.3,2544.8,1.3585]
[1751933415748,6.95221,2545.3,2544.5,1.77697]
[1751933415941,0.78588,2544.6,2544.5,1.45619]
[1751933416146,28.4478,2544.6,2544.3,0.78594]
[1751933416444,0.78595,2544.4,2544.3,0.78594]
[1751933416644,1.44105,2544.4,2544.3,4.96171325]
[1751933416844,0.6551,2544.4,2544.3,4.96171325]
[1751933417145,2.15572,2544.5,2544.4,0.78594]
[1751933417341,2.81082,2544.5,2544.4,1.43194]
[1751933418547,2.81082,2544.5,2544.4,4.96171325]
[1751933421253,2.81082,2544.5,2544.4,1.43194]
[1751933421752,2.81081,2544.5,2544.4,0.78594]
[1751933421952,2.81081,2544.5,2544.4,1.47984]
[1751933422347,2.0249,2544.5,2544.4,1.47984]
[1751933422951,2.81081,2544.5,2544.4,1.47984]
[1751933423949,2.0249,2544.5,2544.4,1.47984]
[1751933424450,2.81081,2544.5,2544.4,1.47984]
[1751933424747,2.0512,2544.5,2544.4,1.47984]
[1751933425053,0.6388,2544.8,2544.4,3.63512]
[1751933425349,0.7858,2544.9,2544.8,0.78581]
[1751933425550,29.6329,2544.9,2544.8,1.47971]
[1751933425750,29.6329,2544.9,2544.8,0.78581]
[1751933426150,29.6329,2544.9,2544.8,1.47971]
[1751933426846,29.6329,2544.9,2544.8,0.78581]
[1751933427042,29.6329,2544.9,2544.8,1.47971]
[1751933427353,29.6329,2544.9,2544.8,0.78581]
[1751933427748,0.78586,2544.8,2544.7,0.78583]
[1751933427948,2.83996,2544.8,2544.7,1.47973]
[1751933428252,2.83996,2544.8,2544.7,0.78583]
[1751933428755,2.83996,2544.8,2544.7,1.47973]
[1751933428948,0.78594,2544.5,2544.4,0.78591]
[1751933429150,26.788,2544.5,2544.4,1.47981]
[1751933429349,26.788,2544.5,2544.4,2.45621]
[1751933429647,27.4694,2544.5,2544.4,2.45621]
[1751933429852,26.788,2544.5,2544.4,2.45621]
[1751933431550,27.57391,2544.5,2544.4,2.45621]
[1751933431753,28.25531,2544.5,2544.4,1.47981]
[1751933431952,27.57391,2544.5,2544.4,1.47981]
[1751933432153,27.4694,2544.5,2544.4,1.47981]
[1751933432553,27.4694,2544.5,2544.4,2.45621]
[1751933434165,0.6814,2544.5,2544.4,2.45621]
[1751933434656,26.802,2544.6,2544.4,2.45621]
[1751933434657,26.802,2544.6,2544.5,0.78591]
[1751933434857,27.58788,2544.6,2544.5,0.78591]
[1751933435159,27.58788,2544.6,2544.5,2.18691]
[1751933435160,26.802,2544.6,2544.5,2.18691]
[1751933435358,27.4834,2544.6,2544.5,2.18691]
[1751933436364,28.26928,2544.6,2544.5,2.18691]
[1751933436660,0.78595,2544.5,2544.4,0.78591]
[1751933436862,4.98138,2544.5,2544.1,4.22150087]
[1751933437168,0.78603,2544.1,2544.0,0.78605]
[1751933437368,27.58703,2544.1,2544.0,0.78605]
[1751933437666,28.1267,2544.1,2543.7,6.16208087]
[1751933437964,30.0918,2544.1,2543.8,3.51764341]
[1751933438158,30.0918,2544.1,2543.7,1.46844]
[1751933438159,0.78612,2543.8,2543.7,1.46843]
[1751933438567,0.78612,2543.8,2543.6,4.30380341]
[1751933438568,0.78615,2543.7,2543.6,4.30380341]
[1751933438758,2.11185,2543.7,2543.6,0.6939]
[1751933439066,0.78618,2543.6,2543.5,3.51764341]
[1751933439269,0.78622,2543.5,2543.4,1.46853]
[1751933439466,0.78622,2543.5,2543.4,2.16243]
[1751933439667,27.59822,2543.5,2543.4,2.16243]
[1751933440068,27.59822,2543.5,2543.4,0.6823]
[1751933440264,0.78625,2543.4,2543.3,0.78625]
[1751933440570,2.75535,2543.4,2543.3,1.48015]
[1751933440956,2.75535,2543.4,2543.3,0.78625]
[1751933441163,2.75535,2543.4,2543.3,1.48015]
[1751933441364,1.2877,2543.4,2543.3,1.48015]
[1751933441762,2.75535,2543.4,2543.3,1.48015]
[1751933442364,1.9691,2543.4,2543.3,1.48015]
[1751933442863,2.75535,2543.4,2543.3,0.6939]
[1751933443270,2.75535,2543.4,2543.3,1.48018]
[1751933443970,1.9691,2543.4,2543.3,1.48018]
[1751933444368,2.75535,2543.4,2543.3,1.48018]
[1751933444667,2.75535,2543.4,2543.2,0.7025]
[1751933444668,0.78628,2543.3,2543.2,0.7025]
[1751933444878,0.78628,2543.3,2543.0,0.78634]
[1751933444879,0.78636,2543.1,2543.0,0.78634]
[1751933445067,0.6814,2543.1,2543.0,1.48024]
[1751933445564,28.1061,2543.2,2543.1,0.78634]
[1751933445767,28.7875,2543.2,2543.1,1.48024]
[1751933446267,29.57381,2543.2,2543.1,1.48024]
[1751933446471,0.78637,2543.0,2542.9,1.43347]
[1751933446667,0.6814,2543.0,2542.9,2.12737]
[1751933446868,0.7059,2543.1,2542.9,2.12737]
[1751933446869,0.7059,2543.1,2543.0,0.78637]
[1751933447065,1.3873,2543.1,2543.0,1.48027]
[1751933448368,28.89243,2543.2,2543.1,0.78634]
[1751933448569,29.57383,2543.2,2543.1,1.48024]
[1751933448765,29.57381,2543.2,2543.1,1.48024]
[1751933453580,29.57381,2543.2,2543.1,0.6939]
[1751933454369,29.57381,2543.2,2543.1,1.48024]
[1751933455673,30.56291,2543.2,2543.1,0.6939]
[1751933455980,0.78637,2543.0,2542.9,0.6471]
[1751933456271,0.78643,2542.8,2542.7,0.6647]
[1751933456473,28.25673,2542.8,2542.7,0.6647]
[1751933456667,28.4594,2542.8,2542.2,1.0024]
[1751933456873,0.78656,2542.4,2542.3,0.6647]
[1751933457072,26.808,2542.4,2542.3,2.09176]
[1751933457274,26.808,2542.4,2542.3,5.27275484]
[1751933458578,28.26586,2542.4,2542.3,4.27035484]
[1751933458771,28.26586,2542.4,2542.3,3.48379484]
[1751933459076,28.26586,2542.4,2542.3,4.27038484]
[1751933459272,27.4793,2542.4,2542.3,4.27038484]
[1751933459470,27.4793,2542.4,2542.3,5.27278484]
[1751933461375,26.808,2542.4,2542.3,5.27278484]
[1751933461779,0.78644,2542.8,2542.7,0.78646]
[1751933461979,35.11,2542.8,2542.7,3.60555484]
[1751933462179,0.6713,2542.8,2542.7,2.81909484]
[1751933462380,0.6713,2542.8,2542.7,3.60555484]
[1751933462381,35.7813,2542.8,2542.7,3.60555484]
[1751933463369,36.56773,2542.8,2542.7,2.81909484]
[1751933463582,36.56773,2542.8,2542.3,2.0526]
[1751933463583,0.78655,2542.5,2542.4,0.78651]
[1751933463774,27.59055,2542.5,2542.4,0.78651]
[1751933463975,27.59052,2542.5,2542.4,0.78651]
[1751933464171,26.804,2542.5,2542.4,3.60560484]
[1751933465686,27.4753,2542.5,2542.4,4.60800484]
[1751933466581,0.6713,2542.5,2542.4,4.60800484]
[1751933466774,0.6713,2542.5,2542.4,5.90710484]
[1751933467175,1.44689,2543.0,2542.9,0.7864]
[1751933467374,37.22819,2543.0,2542.9,0.7864]
[1751933467586,0.78643,2542.9,2542.8,0.78641]
[1751933467789,2.75513,2542.9,2542.8,1.42691]
[1751933468586,1.9687,2542.9,2542.8,1.42691]
[1751933469387,0.9891,2543.2,2542.9,0.7864]
[1751933469583,36.52817403,2543.1,2543.0,0.78637]
[1751933469783,37.86104,2543.1,2543.0,0.78637]
[1751933470288,39.28360974,2543.1,2543.0,0.78637]
[1751933470590,12.48360974,2543.1,2543.0,0.78637]
[1751933470780,37.86904,2543.1,2543.0,0.78637]
[1751933471083,39.29135416,2543.1,2543.0,0.78637]
[1751933471389,39.29154243,2543.1,2543.0,0.78637]
[1751933471781,39.29154243,2543.1,2543.0,1.42687]
[1751933472483,40.28064243,2543.1,2543.0,0.78637]
[1751933474189,39.29154243,2543.1,2543.0,1.42687]
[1751933475888,39.29154243,2543.1,2543.0,0.78637]
[1751933476086,39.29154243,2543.1,2543.0,1.42687]
[1751933476284,39.29154243,2543.1,2543.0,0.78637]
[1751933476490,39.29154243,2543.1,2543.0,1.42687]
[1751933479894,38.47320243,2543.1,2543.0,1.42687]
[1751933480189,39.25954243,2543.1,2543.0,1.42687]
[1751933482892,39.26103553,2543.1,2543.0,1.42687]
[1751933487595,2.72139553,2543.1,2543.0,1.42687]
[1751933487795,2.72139553,2543.1,2543.0,2.39257]
[1751933487796,28.85729553,2543.1,2543.0,2.39257]
[1751933488092,28.85429553,2543.1,2543.0,2.39257]
[1751933488995,27.4303,2543.1,2543.0,1.42687]
[1751933489190,29.63949782,2543.1,2543.0,1.42687]
[1751933489400,28.21664,2543.1,2543.0,1.42687]
[1751933490099,29.58084,2543.1,2543.0,1.42687]
[1751933491194,28.7945,2543.1,2543.0,1.42687]
[1751933491392,0.6855,2543.4,2543.0,2.60639]
[1751933491698,8.297,2543.4,2543.3,2.96482484]
[1751933491902,36.50154154,2543.4,2543.3,4.60612484]
[1751933492100,35.079,2543.4,2543.3,4.60612484]
[1751933492300,8.297,2543.4,2543.3,4.60612484]
[1751933492596,36.50101415,2543.4,2543.3,4.60612484]
[1751933492790,1.42201415,2543.4,2543.3,4.60612484]
[1751933492995,26.786,2543.4,2543.3,4.60612484]
[1751933495599,11.82666574,2544.6,2543.3,17.45710692]
[1751933495792,3.36986917,2544.5,2544.4,2.96453484]
[1751933495998,29.414,2544.5,2544.4,2.96453484]
[1751933496202,30.83410441,2544.5,2544.4,2.96453484]
[1751933496498,28.7453,2544.5,2544.4,2.96453484]
[1751933496705,1.9393,2544.5,2544.4,2.96453484]
[1751933497004,28.7423,2544.5,2544.4,2.96453484]
[1751933498594,1.9393,2544.5,2544.4,2.96453484]
[1751933498906,28.7423,2544.5,2544.4,2.96453484]
[1751933499203,28.7423,2544.5,2544.4,3.64013484]
[1751933499599,28.084,2544.5,2544.4,3.64013484]
[1751933499905,28.7423,2544.5,2544.4,3.64013484]
[1751933502702,28.7423,2544.5,2544.4,4.60583484]
[1751933502703,26.788,2544.5,2544.4,4.60583484]
[1751933503107,27.4463,2544.5,2544.4,4.60583484]
[1751933503404,1.0311,2545.2,2544.4,3.81989484]
[1751933503607,10.3343,2545.3,2544.9,2.96437484]
[1751933503802,0.7857,2545.2,2544.9,3.63997484]
[1751933504002,11.11998,2545.3,2545.2,0.78569]
[1751933504306,37.93716,2545.3,2545.2,0.78569]
[1751933504706,37.93716,2545.3,2545.2,0.6756]
[1751933504904,37.1515,2545.3,2544.8,0.69]
[1751933505109,0.78578,2545.0,2544.9,0.78577]
[1751933505303,0.78578,2544.9,2544.8,2.86859484]
[1751933505509,0.78585,2544.7,2544.6,0.78584]
[1751933505709,28.25315,2544.7,2544.6,1.46144]
[1751933506507,0.78591,2544.5,2544.4,1.4725]
[1751933506708,28.25521,2544.5,2544.4,2.1481]
[1751933507108,27.4693,2544.5,2544.1,2.17859484]
[1751933507313,1.318,2544.4,2544.3,0.78594]
[1751933507508,1.318,2544.4,2544.3,3.64013484]
[1751933507509,1.9763,2544.4,2544.3,3.64013484]
[1751933507716,2.76224,2544.4,2544.3,3.64013484]
[1751933508213,1.9763,2544.4,2544.3,3.64013484]
[1751933508412,2.76224,2544.4,2544.3,3.64013484]
[1751933508813,1.9763,2544.4,2544.3,3.64013484]
[1751933509704,2.76224,2544.4,2544.3,3.64013484]
[1751933510409,1.9763,2544.4,2544.3,3.64013484]
[1751933511013,2.76224,2544.4,2544.3,3.64013484]
[1751933512015,0.6583,2544.4,2544.3,4.60583484]
[1751933514521,26.803,2544.4,2544.3,4.60586484]
[1751933515314,0.78588,2544.6,2544.5,0.78591]
[1751933515514,28.26078,2544.6,2544.5,3.62170484]
[1751933516203,27.4749,2544.6,2544.5,3.62170484]
[1751933516409,28.26078,2544.6,2544.5,3.62170484]
[1751933516809,28.26078,2544.6,2544.5,4.65360484]
[1751933517109,28.26078,2544.6,2544.5,3.62170484]
[1751933517613,28.26078,2544.6,2544.5,4.65360484]
[1751933517811,28.26078,2544.6,2544.5,3.62170484]
[1751933519514,27.4749,2544.6,2544.5,3.62170484]
[1751933520415,0.6453,2544.9,2544.8,0.78581]
[1751933520709,37.201,2544.9,2544.8,3.62160484]
[1751933520918,37.201,2544.9,2544.8,2.96440484]
[1751933521217,2.103,2544.9,2544.8,3.62160484]
[1751933521418,28.897,2544.9,2544.8,3.62160484]
[1751933521910,30.2738,2544.9,2544.8,3.62160484]
[1751933522312,3.4798,2544.9,2544.8,3.62160484]
[1751933522619,27.4639,2544.9,2544.8,4.65350484]
[1751933522817,26.792,2544.9,2544.8,4.65350484]
[1751933523018,27.4639,2544.9,2544.8,4.65350484]
[1751933523817,0.6719,2544.9,2544.8,4.65350484]
[1751933524012,8.304,2545.1,2545.0,0.78575]
[1751933524212,35.094,2545.1,2545.0,3.62154484]
[1751933524811,35.7659,2545.1,2545.0,3.62154484]
[1751933525413,36.55162,2545.1,2545.0,3.62154484]
[1751933526005,35.7659,2545.1,2545.0,3.62154484]
[1751933526211,35.7629,2545.1,2545.0,4.65344484]
[1751933526907,0.6719,2545.1,2545.0,4.65344484]
[1751933527112,2.0339,2545.3,2545.2,0.78569]
[1751933527313,2.08675408,2545.3,2545.2,4.65338484]
[1751933527510,26.788,2545.3,2545.2,4.65338484]
[1751933527718,27.4599,2545.3,2545.2,4.65338484]
[1751933527918,0.6719,2545.3,2545.2,4.65338484]
[1751933528119,28.24556,2545.3,2545.2,4.65338484]
[1751933528319,27.4599,2545.3,2545.2,4.65338484]
[1751933529022,27.4599,2545.3,2545.2,3.62148484]
[1751933529522,28.24556,2545.3,2545.2,3.62148484]
[1751933539229,28.24556,2545.3,2545.2,2.83579484]
[1751933539430,0.78575,2545.1,2545.0,0.7857]
[1751933539634,28.21965,2545.1,2545.0,2.96429484]
[1751933539924,2.76421,2545.2,2545.1,0.78572]
[1751933540126,29.53621,2545.2,2545.1,1.48462]
[1751933540332,30.18441,2545.2,2545.1,1.48462]
[1751933540929,29.53621,2545.2,2545.1,1.48462]
[1751933541539,29.53621,2545.2,2545.1,0.78572]
[1751933542530,0.78578,2544.9,2544.8,2.96439484]
[1751933542832,27.55978,2545.0,2544.9,0.78578]
[1751933543025,28.20798,2545.0,2544.9,1.48468]
[1751933546834,1.9645,2544.9,2544.6,3.5233916]
[1751933547034,1.43405,2544.7,2544.6,3.5233916]
[1751933547235,1.43405,2544.7,2544.6,3.66337484]
[1751933547429,2.81915,2544.7,2544.6,3.66337484]
[1751933547835,2.81915,2544.7,2544.6,2.96447484]
[1751933548337,2.81915,2544.7,2544.6,3.66337484]
[1751933549940,29.59315,2544.7,2544.6,3.66337484]
[1751933550134,0.78591,2544.5,2544.4,7.55625031]
[1751933550435,27.4202,2544.5,2544.4,4.34322484]
[1751933550839,28.7508,2544.5,2544.4,4.34322484]
[1751933551531,29.53671,2544.5,2544.4,7.86403111]
[1751933551728,28.7508,2544.5,2544.4,7.86403111]
[1751933553334,28.7508,2544.5,2544.4,4.34322484]
[1751933553538,9.0828,2544.9,2544.5,1.96474]
[1751933553842,0.6482,2544.9,2544.8,3.66331484]
[1751933554042,28.83142817,2544.9,2544.8,3.66331484]
[1751933554739,28.83142817,2544.9,2544.8,4.35281484]
[1751933554937,28.83742817,2544.9,2544.8,4.35281484]
[1751933555442,30.94270817,2544.9,2544.8,3.65391484]
[1751933555741,30.94070817,2544.9,2544.8,4.35281484]
[1751933556136,30.15492817,2544.9,2544.8,3.65391484]
[1751933556537,30.15492817,2544.9,2544.8,4.35281484]
[1751933557141,3.38392817,2544.9,2544.8,4.35281484]
[1751933557347,8.297,2545.2,2545.1,0.78572]
[1751933557539,37.12686058,2545.2,2545.1,1.48462]
[1751933557736,1.41566058,2545.2,2545.1,2.47912]
[1751933557945,1.3403,2545.7,2545.6,0.78557]
[1751933558139,1.3403,2545.7,2545.6,3.66306484]
[1751933558140,30.19194111,2545.7,2545.6,3.66306484]
[1751933559345,30.97748111,2545.7,2545.6,3.66306484]
[1751933559646,30.19294111,2545.7,2545.6,3.66306484]
[1751933560545,3.40394111,2545.7,2545.6,3.66306484]
[1751933560840,29.53974111,2545.7,2545.6,3.66306484]
[1751933561145,30.18794111,2545.7,2545.6,3.66306484]
[1751933561747,1.41544111,2545.7,2545.6,4.65756484]
[1751933563749,61.346,2546.0,2545.7,1.96383]
[1751933563945,28.19392291,2545.9,2545.8,1.78001]
[1751933564144,28.19392291,2545.9,2545.8,2.47891]
[1751933564446,28.84212291,2545.9,2545.8,4.65750484]
[1751933564843,1.41492291,2545.9,2545.8,4.65750484]
[1751933565638,26.786,2546.1,2546.0,0.78544]
[1751933565846,28.84828106,2546.1,2546.0,3.66293484]
[1751933566041,1.41408106,2546.1,2546.0,4.65743484]
[1751933566442,26.786,2546.2,2546.0,4.65743484]
[1751933566647,26.786,2546.2,2546.1,1.43761]
[1751933566846,26.786,2546.2,2546.1,2.13651]
[1751933567149,2.06711,2546.5,2546.4,0.78532]
[1751933567345,39.54918067,2546.5,2546.4,0.78532]
[1751933567546,39.22608067,2546.5,2546.4,1.48422]
[1751933567747,39.22608067,2546.5,2546.4,0.78532]
[1751933568051,39.22608067,2546.5,2546.4,1.48422]
[1751933568052,3.34377067,2546.5,2546.4,1.48422]
[1751933568348,61.314,2546.8,2546.4,1.48422]
[1751933568349,61.314,2546.8,2546.7,0.78523]
[1751933568646,89.53081042,2546.8,2546.7,1.48413]
[1751933568846,61.314,2546.8,2546.7,1.48413]
[1751933569053,8.295,2546.9,2546.8,0.7852]
[1751933569353,10.2732,2547.3,2547.2,0.78507]
[1751933569641,40.90283991,2547.3,2547.2,2.96366484]
[1751933570041,40.90283991,2547.3,2547.1,0.78508]
[1751933570241,3.5233101,2547.8,2547.2,3.17309484]
[1751933570442,1.40883563,2547.7,2547.6,3.62142484]
[1751933570645,2.07573563,2547.7,2547.6,2.83649484]
[1751933570846,0.785,2547.5,2547.2,2.17859484]
[1751933571042,0.6669,2547.3,2547.2,2.83649484]
[1751933571239,0.6669,2547.3,2547.2,3.62156484]
[1751933571546,26.842,2547.6,2547.5,0.78498]
[1751933571752,27.5089,2547.6,2547.5,3.62147484]
[1751933572146,27.5089,2547.6,2547.5,4.61597484]
[1751933572348,0.6669,2547.6,2547.5,4.61597484]
[1751933573342,8.293,2547.9,2547.8,0.78489]
[1751933573546,26.836,2548.1,2547.8,5.75859484]
[1751933573844,10.707,2548.3,2548.2,0.78477]
[1751933574046,38.99866,2548.3,2548.1,0.78478]
[1751933574248,0.78477,2548.2,2548.1,0.78478]
[1751933574447,0.78477,2548.2,2548.0,2.17859484]
[1751933574448,0.7848,2548.1,2548.0,2.17859484]
[1751933574648,1.4517,2548.1,2548.0,2.96342484]
[1751933574853,2.7697,2548.1,2548.0,0.78483]
[1751933575245,0.78483,2548.0,2547.9,0.78484]
[1751933575446,2.76974,2548.0,2547.9,0.78486]
[1751933575655,2.76974,2548.0,2547.9,1.44276]
[1751933575952,0.78491,2547.8,2547.7,0.78492]
[1751933576152,2.45981,2547.8,2547.7,0.78492]
[1751933576346,0.78492,2547.7,2547.6,0.6934]
[1751933576656,0.78498,2547.6,2547.5,0.78497]
[1751933576956,1.45188,2547.6,2547.5,0.78497]
[1751933577258,1.45188,2547.6,2547.2,0.7038]
[1751933577259,2.9929,2547.6,2547.2,0.7038]
[1751933577449,2.9929,2547.6,2547.4,0.78499]
[1751933577450,26.835,2547.5,2547.4,0.78499]
[1751933577757,2.0366,2547.5,2547.4,3.62148484]
[1751933578449,0.6981,2548.0,2547.4,3.79639484]
[1751933578650,0.6981,2548.0,2547.9,0.78486]
[1751933578845,28.226,2548.0,2547.9,0.78486]
[1751933579253,29.01083,2548.0,2547.9,0.78486]
[1751933579854,0.78486,2547.9,2547.8,2.96345484]
[1751933580047,27.5249,2547.9,2547.8,3.62138484]
[1751933580652,28.30976,2547.9,2547.8,3.62138484]
[1751933580948,27.5249,2547.9,2547.8,3.62138484]
[1751933581743,0.6669,2547.9,2547.8,3.62138484]
[1751933581948,26.858,2547.9,2547.8,3.62138484]
[1751933582143,27.5249,2547.9,2547.8,3.62138484]
[1751933582948,27.5249,2547.9,2547.8,4.58128484]
[1751933583254,27.5249,2547.9,2547.8,3.62138484]
[1751933583455,0.78477,2548.3,2548.2,0.78475]
[1751933583654,28.30467,2548.3,2548.2,0.78475]
[1751933583950,28.29967,2548.3,2548.2,0.78475]
[1751933584155,28.29867,2548.3,2548.2,0.78475]
[1751933584353,28.29867,2548.3,2548.2,1.44265]
[1751933584554,28.29867,2548.3,2548.2,0.78475]
[1751933584746,28.29867,2548.3,2548.2,1.44265]
[1751933585451,29.30667,2548.3,2548.2,0.78475]
[1751933586057,0.6669,2548.3,2548.2,1.44265]
[1751933586251,27.5159,2548.3,2548.2,0.78475]
[1751933587255,28.30064,2548.3,2548.2,1.44265]
[1751933587457,27.5159,2548.3,2548.2,1.44265]
[1751933587656,28.30064,2548.3,2548.2,1.44265]
[1751933588453,0.78477,2548.2,2547.9,0.6882]
[1751933588655,1.79277,2548.2,2548.1,0.78478]
[1751933588857,0.78477,2548.2,2548.1,0.78478]
[1751933589159,1.45167,2548.2,2548.1,0.78478]
[1751933589356,1.45167,2548.2,2548.1,1.44268]
[1751933589550,1.45167,2548.2,2548.1,0.78478]
[1751933589858,0.6669,2548.2,2548.1,1.44268]
[1751933590063,0.6669,2548.2,2548.1,2.83649484]
[1751933590257,26.83,2548.2,2548.1,4.58119484]
[1751933590763,0.6669,2548.2,2548.1,4.58119484]
[1751933590962,27.4979,2548.2,2548.1,4.58119484]
[1751933591157,61.303,2548.5,2548.2,1.9619]
[1751933591363,61.303,2548.5,2548.4,3.62120484]
[1751933591559,88.133,2548.5,2548.4,3.62120484]
[1751933591763,88.133,2548.5,2548.4,4.30180484]
[1751933592067,88.133,2548.5,2548.0,2.17859484]
[1751933592364,0.7848,2548.2,2548.1,0.78478]
[1751933592567,27.6268,2548.2,2548.1,0.78478]
[1751933592952,27.6268,2548.2,2548.1,1.44268]
[1751933593163,29.003,2548.2,2548.1,1.44268]
[1751933593662,29.003,2548.2,2548.1,0.6579]
[1751933594265,39.49059484,2548.2,2548.1,0.6579]
[1751933594462,37.312,2548.2,2548.1,0.6579]
[1751933594960,0.78486,2547.9,2547.8,2.96346484]
[1751933595165,27.65186,2547.9,2547.8,3.62136484]